bitfinex-derivatives/quotes_SOLF0:USTF0_20250907
["timestamp","ask_amount","ask_price","bid_price","bid_amount"]
[1757256444987,0.94906927,203.7,203.67,1.94071424]
[1757256445192,0.94906927,203.7,203.69,9.79071424]
[1757256445587,7.49,203.76,203.69,9.79071424]
[1757256445787,0.94906927,203.71,203.67,7.85]
[1757256446695,7.49,203.76,203.67,7.85]
[1757256446993,0.94906927,203.72,203.71,7.85]
[1757256449194,1.94071424,203.79,203.71,7.85]
[1757256449389,0.94906927,203.73,203.66,7.85]
[1757256449594,7.49,203.8,203.73,7.85]
[1757256449794,0.94906927,203.74,203.73,7.85]
[1757256450799,0.94906927,203.74,203.73,9.79071424]
[1757256451094,7.49,203.8,203.73,9.79071424]
[1757256451296,0.94906927,203.76,203.73,1.94071424]
[1757256451597,0.94906927,203.76,203.74,7.85]
[1757256453597,0.94906927,203.76,203.73,1.94071424]
[1757256453800,0.94906927,203.76,203.74,7.85]
[1757256454994,0.94906927,203.76,203.73,1.94071424]
[1757256455195,0.94906927,203.76,203.74,7.98]
[1757256455997,9.43071424,203.8,203.74,7.98]
[1757256456202,0.94906927,203.75,203.73,1.94071424]
[1757256456401,7.94,203.79,203.73,1.94071424]
[1757256456602,0.94906927,203.74,203.73,9.92071424]
[1757256459301,7.94,203.79,203.73,9.92071424]
[1757256467506,7.94,203.84,203.76,1.94071424]
[1757256467706,329.43543465,203.88,203.8,1.94071424]
[1757256467906,1.94071424,203.87,203.8,1.94071424]
[1757256468507,1.94071424,203.87,203.8,9.92071424]
[1757256469109,7.94,203.88,203.8,9.92071424]
[1757256469711,0.94906927,203.82,203.81,7.98]
[1757256473518,7.94,203.88,203.81,7.98]
[1757256473717,7.94,203.88,203.82,9.92071424]
[1757256473718,0.94906927,203.83,203.82,9.92071424]
[1757256474320,7.94,203.88,203.82,9.92071424]
[1757256474513,0.94906927,203.84,203.79,7.98]
[1757256475018,0.94906927,203.84,203.78,7.98]
[1757256475817,0.94906927,203.84,203.81,1.94071424]
[1757256476120,8.88906927,203.84,203.81,1.94071424]
[1757256476320,8.88906927,203.84,203.81,9.92071424]
[1757256476510,0.94906927,203.84,203.82,7.98]
[1757256478717,0.94906927,203.84,203.83,1.94071424]
[1757256482423,0.94906927,203.84,203.83,7.98]
[1757256484324,7.94,203.9,203.83,7.98]
[1757256484624,0.94906927,203.85,203.84,9.92071424]
[1757256485317,12.90543465,203.93,203.84,9.92071424]
[1757256485515,1.94071424,203.94,203.82,1.94071424]
[1757256485516,0.94906927,203.85,203.82,1.94071424]
[1757256485718,1.94071424,203.88,203.82,1.94071424]
[1757256486022,0.94906927,203.83,203.82,1.94071424]
[1757256486414,0.94906927,203.83,203.82,7.42]
[1757256487321,0.94906927,203.83,203.78,3.03399811]
[1757256487915,0.94906927,203.83,203.79,7.42]
[1757256488525,0.94906927,203.83,203.78,3.03399811]
[1757256488730,7.41,203.87,203.76,7.42]
[1757256489024,0.94906927,203.82,203.76,7.42]
[1757256489426,7.41,203.83,203.76,7.42]
[1757256490218,0.94906927,203.81,203.75,3.03399811]
[1757256490425,0.94906927,203.81,203.75,10.45399811]
[1757256491024,7.41,203.82,203.75,10.45399811]
[1757256491428,7.41,203.81,203.75,7.42]
[1757256491928,0.94906927,203.78,203.74,7.42]
[1757256492121,0.94906927,203.78,203.73,3.03399811]
[1757256492322,0.94906927,203.78,203.74,7.42]
[1757256492520,8.35906927,203.78,203.74,7.42]
[1757256492725,0.94906927,203.75,203.7,3.03399811]
[1757256493119,0.94906927,203.75,203.71,7.42]
[1757256493331,0.94906927,203.75,203.7,3.03399811]
[1757256494424,0.94906927,203.75,203.71,7.42]
[1757256494827,0.94906927,203.75,203.7,3.03399811]
[1757256495130,0.94906927,203.75,203.71,7.42]
[1757256495333,0.94906927,203.75,203.7,3.03399811]
[1757256495525,0.94906927,203.75,203.71,7.42]
[1757256495725,0.94906927,203.75,203.7,3.03399811]
[1757256496125,0.94906927,203.75,203.71,7.42]
[1757256496320,0.94906927,203.75,203.7,3.03399811]
[1757256496827,0.94906927,203.75,203.71,7.42]
[1757256497027,0.94906927,203.75,203.7,3.03399811]
[1757256497225,5.49543465,203.82,203.74,7.42]
[1757256497430,0.94906927,203.78,203.74,7.42]
[1757256497631,0.94906927,203.78,203.73,3.03399811]
[1757256497930,0.94906927,203.78,203.74,7.42]
[1757256498132,7.41,203.83,203.74,7.42]
[1757256498330,0.94906927,203.79,203.74,7.42]
[1757256499828,5.49543465,203.85,203.77,7.42]
[1757256500028,0.94906927,203.8,203.77,7.42]
[1757256500230,0.94906927,203.8,203.76,3.03399811]
[1757256500528,12.90543465,203.86,203.77,7.42]
[1757256500726,0.94906927,203.81,203.76,3.03399811]
[1757256502536,0.94906927,203.81,203.77,7.42]
[1757256503733,0.94906927,203.81,203.76,3.03399811]
[1757256503929,0.94906927,203.81,203.77,7.42]
[1757256504137,0.94906927,203.81,203.76,3.03399811]
[1757256504335,0.94906927,203.81,203.77,7.42]
[1757256504727,0.94906927,203.81,203.76,3.03399811]
[1757256504931,0.94906927,203.81,203.77,7.42]
[1757256505129,0.94906927,203.81,203.76,3.03399811]
[1757256505336,0.94906927,203.81,203.77,7.42]
[1757256505736,0.94906927,203.81,203.76,3.03399811]
[1757256506630,0.94906927,203.81,203.77,7.42]
[1757256507235,0.94906927,203.81,203.76,3.03399811]
[1757256507428,0.94906927,203.81,203.77,7.42]
[1757256508027,0.94906927,203.81,203.76,3.03399811]
[1757256508534,0.94906927,203.81,203.77,7.42]
[1757256508736,0.94906927,203.81,203.76,3.03399811]
[1757256509036,7.41,203.84,203.76,3.03399811]
[1757256509236,0.94906927,203.8,203.77,7.42]
[1757256509433,0.94906927,203.8,203.76,3.03399811]
[1757256509638,0.94906927,203.8,203.77,7.42]
[1757256509832,0.94906927,203.8,203.76,3.03399811]
[1757256510038,0.94906927,203.8,203.77,7.42]
[1757256510639,0.94906927,203.8,203.76,3.03399811]
[1757256511238,0.94906927,203.8,203.77,7.42]
[1757256511436,0.94906927,203.8,203.76,3.03399811]
[1757256511631,0.94906927,203.8,203.77,7.42]
[1757256512030,0.94906927,203.8,203.76,3.03399811]
[1757256513136,0.94906927,203.8,203.77,7.42]
[1757256513641,0.94906927,203.8,203.76,3.03399811]
[1757256514140,0.94906927,203.8,203.77,7.42]
[1757256514332,0.94906927,203.8,203.76,3.03399811]
[1757256514735,7.41,203.84,203.77,7.42]
[1757256514941,0.94906927,203.81,203.77,7.42]
[1757256515145,0.94906927,203.81,203.77,7.75]
[1757256515538,0.94906927,203.81,203.76,3.03399811]
[1757256515738,0.94906927,203.81,203.77,7.75]
[1757256515937,0.94906927,203.81,203.76,3.03399811]
[1757256516542,0.94906927,203.81,203.77,7.75]
[1757256516742,0.94906927,203.81,203.76,3.03399811]
[1757256517043,0.94906927,203.81,203.77,7.75]
[1757256517243,0.94906927,203.81,203.76,3.03399811]
[1757256517445,0.94906927,203.81,203.77,7.75]
[1757256517638,0.94906927,203.81,203.76,3.03399811]
[1757256518243,0.94906927,203.81,203.77,7.75]
[1757256518445,0.94906927,203.81,203.76,108.49399811]
[1757256518742,0.94906927,203.81,203.77,7.75]
[1757256519241,7.41,203.84,203.77,7.75]
[1757256519443,7.41,203.84,203.78,7.75]
[1757256522541,5.49543465,203.85,203.78,7.75]
[1757256522746,5.49543465,203.85,203.76,124.87399811]
[1757256522747,13.06543465,203.86,203.8,7.75]
[1757256522944,0.94906927,203.82,203.79,3.03399811]
[1757256523544,0.94906927,203.82,203.8,7.75]
[1757256523743,0.94906927,203.82,203.79,3.03399811]
[1757256523945,7.57,203.86,203.8,7.75]
[1757256524247,0.94906927,203.83,203.79,3.03399811]
[1757256524743,7.57,203.86,203.82,10.78399811]
[1757256524948,0.94906927,203.84,203.83,7.75]
[1757256525545,7.57,203.86,203.82,3.03399811]
[1757256525746,7.57,203.86,203.83,7.75]
[1757256525946,0.94906927,203.85,203.83,7.75]
[1757256527446,0.94906927,203.85,203.82,3.03399811]
[1757256527748,0.94906927,203.85,203.83,7.75]
[1757256530554,0.94906927,203.85,203.82,3.03399811]
[1757256530750,0.94906927,203.85,203.83,7.75]
[1757256530954,0.94906927,203.85,203.82,3.03399811]
[1757256531352,0.94906927,203.85,203.83,7.75]
[1757256531551,0.94906927,203.85,203.84,7.75]
[1757256534256,0.94906927,203.85,203.81,121.8]
[1757256534257,7.57,203.84,203.81,121.8]
[1757256534451,7.57,203.84,203.82,7.75]
[1757256535454,0.94906927,203.83,203.82,7.75]
[1757256538656,0.94906927,203.83,203.75,137.83737391]
[1757256538850,0.94906927,203.83,203.79,3.03399811]
[1757256538851,8.51906927,203.83,203.79,3.03399811]
[1757256539253,0.94906927,203.83,203.8,7.75]
[1757256540561,0.94906927,203.83,203.79,3.03399811]
[1757256540960,0.94906927,203.83,203.8,7.75]
[1757256541160,0.94906927,203.83,203.79,3.03399811]
[1757256541959,0.94906927,203.83,203.8,7.75]
[1757256543457,0.94906927,203.83,203.79,3.03399811]
[1757256543762,7.57,203.89,203.82,10.78399811]
[1757256543957,0.94906927,203.85,203.82,121.76]
[1757256544155,8.51906927,203.85,203.83,7.75]
[1757256544459,0.94906927,203.85,203.8,3.03399811]
[1757256544665,7.57,203.84,203.81,129.51]
[1757256545065,7.92,203.84,203.8,7.48]
[1757256545260,0.03494841,203.85,203.8,129.24]
[1757256545461,0.94906927,203.81,203.8,129.24]
[1757256546365,0.94906927,203.81,203.8,131.18184053]
[1757256546761,0.94906927,203.81,203.76,7.48]
[1757256546965,5.53038306,203.85,203.79,123.70184053]
[1757256547167,0.94906927,203.8,203.79,123.70184053]
[1757256547968,0.94906927,203.8,203.79,131.18184053]
[1757256549056,0.03536967,203.84,203.8,7.48]
[1757256549255,0.94906927,203.81,203.8,7.48]
[1757256555776,0.94906927,203.81,203.79,123.70184053]
[1757256555976,8.86906927,203.81,203.79,123.70184053]
[1757256556578,0.94906927,203.81,203.79,123.70184053]
[1757256556877,0.94906927,203.81,203.8,7.48]
[1757256557073,0.03536967,203.84,203.8,7.48]
[1757256557279,0.03536967,203.84,203.83,7.48]
[1757256557480,0.98443894,203.84,203.83,129.22]
[1757256558081,0.98443894,203.84,203.83,133.80946298]
[1757256559080,0.98443894,203.84,203.83,129.22]
[1757256559381,0.03536967,203.84,203.83,131.16184053]
[1757256565988,0.03536967,203.84,203.83,129.22]
[1757256566182,0.03536967,203.84,203.83,131.16184053]
[1757256566786,0.98443894,203.84,203.83,121.7]
[1757256567088,8.90443894,203.84,203.83,121.7]
[1757256569292,0.98443894,203.84,203.83,121.7]
[1757256571291,0.98443894,203.84,203.83,129.18]
[1757256571892,0.03536967,203.84,203.83,129.18]
[1757256573094,0.03536967,203.84,203.83,133.55654293]
[1757256575994,7.92,203.9,203.84,8.03]
[1757256576192,7.92,203.9,203.85,134.06654293]
[1757256576193,0.94906927,203.86,203.85,134.06654293]
[1757256577300,0.94906927,203.86,203.85,136.00838346]
[1757256577498,7.92,203.9,203.86,8.03]
[1757256577699,0.94906927,203.87,203.86,8.03]
[1757256577900,0.94906927,203.87,203.86,47.18422303]
[1757256578800,0.94906927,203.87,203.86,49.12606356]
[1757256579396,7.92,203.9,203.87,8.03]
[1757256579699,7.92,203.9,203.88,1.94184053]
[1757256580092,5.49543465,203.92,203.86,34.78]
[1757256580400,7.62,203.91,203.87,4.37284859]
[1757256580603,5.49543465,203.92,203.86,36.72184053]
[1757256580802,7.62,203.91,203.87,4.37269338]
[1757256581002,5.49543465,203.92,203.87,0.03373453]
[1757256581300,7.62,203.91,203.88,8.03]
[1757256581800,5.49543465,203.92,203.88,8.03]
[1757256582000,7.62,203.91,203.88,8.03]
[1757256582591,5.49543465,203.92,203.88,8.03]
[1757256582792,7.62,203.91,203.88,8.03]
[1757256584193,5.49543465,203.92,203.87,0.03373453]
[1757256584398,7.62,203.94,203.88,14.34452307]
[1757256584595,5.49543465,203.95,203.89,4.37268254]
[1757256584800,5.49543465,203.95,203.88,1.94184053]
[1757256584801,7.62,203.94,203.88,9.97184053]
[1757256585001,5.49543465,203.95,203.89,4.37190725]
[1757256585205,7.62,203.94,203.88,9.97184053]
[1757256585406,7.62,203.94,203.89,4.37954294]
[1757256585601,7.62,203.94,203.88,9.97184053]
[1757256585804,13.11543465,203.94,203.89,4.37954294]
[1757256586003,5.49543465,203.94,203.89,8.03]
[1757256586297,7.62,203.93,203.89,8.03]
[1757256586903,5.49543465,203.94,203.89,8.03]
[1757256587103,1.94184053,203.95,203.89,8.03]
[1757256587104,7.43727518,203.95,203.89,8.03]
[1757256588105,7.62,203.94,203.89,8.03]
[1757256588410,7.62,203.94,203.88,9.97184053]
[1757256588708,7.62,203.94,203.89,4.37740195]
[1757256588905,7.62,203.94,203.88,9.97184053]
[1757256589106,7.43727518,203.95,203.89,4.37737704]
[1757256589304,7.62,203.94,203.88,9.97184053]
[1757256589504,7.62,203.94,203.89,4.37669016]
[1757256589740,7.62,203.94,203.88,9.97184053]
[1757256589944,7.62,203.94,203.89,4.37669313]
[1757256590107,7.62,203.94,203.88,9.97184053]
[1757256590307,7.62,203.94,203.89,4.37614929]
[1757256590500,7.62,203.94,203.88,9.97184053]
[1757256590702,1.94184053,203.95,203.89,4.37581374]
[1757256590907,1.94184053,203.95,203.88,1.94184053]
[1757256590908,7.62,203.94,203.88,9.97184053]
[1757256591101,1.94184053,203.95,203.89,4.37581374]
[1757256591307,7.62,203.94,203.88,9.97184053]
[1757256596712,7.43727518,203.95,203.88,9.97184053]
[1757256597410,7.62,203.94,203.88,9.97184053]
[1757256599010,7.62,203.94,203.89,4.4001774]
[1757256599208,7.62,203.94,203.88,9.97184053]
[1757256599513,7.43727518,203.95,203.89,4.40246961]
[1757256599712,7.62,203.94,203.88,9.97184053]
[1757256599914,7.62,203.94,203.89,4.40259176]
[1757256600113,7.62,203.94,203.88,9.97184053]
[1757256600314,7.43727518,203.95,203.89,4.40321032]
[1757256600511,7.62,203.94,203.88,9.97184053]
[1757256600716,7.62,203.94,203.89,4.40321724]
[1757256600915,7.62,203.94,203.88,9.97184053]
[1757256601117,5.49543465,203.94,203.89,4.40365488]
[1757256601316,5.49543465,203.94,203.88,1.94184053]
[1757256601317,13.11543465,203.94,203.88,9.97184053]
[1757256601519,5.49543465,203.93,203.89,8.03]
[1757256601717,7.62,203.92,203.87,0.03373453]
[1757256601920,7.62,203.89,203.87,0.03373453]
[1757256602317,5.49543465,203.92,203.87,0.03373453]
[1757256602517,0.94906927,203.88,203.87,0.03373453]
[1757256602719,8.56906927,203.88,203.87,0.03373453]
[1757256603019,0.94906927,203.88,203.87,8.06373453]
[1757256603617,5.49543465,203.91,203.87,4.43969315]
[1757256603824,0.94906927,203.89,203.88,14.3772653]
[1757256606323,0.94906927,203.89,203.88,12.43542477]
[1757256613025,8.50906927,203.89,203.88,4.40542477]
[1757256614726,8.50906927,203.89,203.87,0.03373453]
[1757256614927,8.50906927,203.89,203.88,4.40854875]
[1757256615325,0.94906927,203.89,203.88,12.17854875]
[1757256617228,8.50906927,203.89,203.88,4.40854875]
[1757256621226,8.50906927,203.89,203.87,0.03373453]
[1757256621227,16.77304824,203.89,203.87,0.03373453]
[1757256622329,9.21304824,203.89,203.87,0.03373453]
[1757256622631,7.56,203.88,203.87,0.03373453]
[1757256623133,8.26397897,203.89,203.87,7.80373453]
[1757256623431,0.94906927,203.88,203.87,7.80373453]
[1757256626238,0.94906927,203.88,203.87,0.03373453]
[1757256626530,8.50906927,203.88,203.87,0.03373453]
[1757256629738,14.01576718,203.88,203.87,0.03373453]
[1757256629938,8.50906927,203.88,203.87,0.03373453]
[1757256631144,8.50906927,203.88,203.87,0.00551748]
[1757256637944,14.00794328,203.88,203.87,0.00551748]
[1757256638145,8.50906927,203.88,203.87,0.00551748]
[1757256638652,0.94906927,203.88,203.87,0.00551748]
[1757256639344,7.45,203.9,203.87,7.80551748]
[1757256639548,5.49887401,203.89,203.87,7.80551748]
[1757256639753,0.94906927,203.88,203.87,7.80551748]
[1757256641554,0.94906927,203.88,203.87,0.00551748]
[1757256644264,6.44794328,203.88,203.87,0.00551748]
[1757256648857,0.94906927,203.88,203.87,0.00551748]
[1757256651564,6.44794328,203.88,203.87,0.00551748]
[1757256658467,0.94906927,203.88,203.87,0.00551748]
[1757256659669,5.49887401,203.89,203.87,0.00551748]
[1757256659863,12.94887401,203.92,203.89,7.8]
[1757256660065,12.94887401,203.92,203.87,0.00551748]
[1757256660066,0.94906927,203.91,203.87,0.00551748]
[1757256660258,0.94906927,203.91,203.88,4.39801454]
[1757256660463,8.39906927,203.91,203.89,7.8]
[1757256664167,0.94906927,203.91,203.87,0.00551748]
[1757256664471,5.49887401,203.93,203.89,7.8]
[1757256664665,0.94906927,203.92,203.87,0.00551748]
[1757256664970,8.39906927,203.92,203.89,7.9]
[1757256666172,8.39906927,203.92,203.87,0.00551748]
[1757256666173,7.98,203.91,203.87,0.00551748]
[1757256666371,13.47887401,203.91,203.87,0.00551748]
[1757256671277,0.94906927,203.9,203.87,0.00551748]
[1757256671476,7.98,203.89,203.87,0.00551748]
[1757256671776,5.49887401,203.91,203.87,0.00551748]
[1757256671977,7.98,203.89,203.87,0.00551748]
[1757256674176,13.47887401,203.91,203.87,0.00551748]
[1757256674380,0.94906927,203.89,203.87,0.00551748]
[1757256675674,8.92906927,203.89,203.87,0.00551748]
[1757256678682,8.92906927,203.89,203.87,7.90551748]
[1757256684188,7.98,203.88,203.87,0.00551748]
[1757256684384,7.98,203.88,203.87,4.38547269]
[1757256688783,5.49887401,203.89,203.87,0.00551748]
[1757256689089,6.44794328,203.89,203.87,0.00551748]
[1757256690380,1.94094194,203.9,203.87,0.00551748]
[1757256690381,14.42794328,203.88,203.87,0.00551748]
[1757256690585,10.87001121,203.88,203.87,0.00551748]
[1757256694696,19.13399018,203.88,203.79,1.94094194]
[1757256694893,7.59,203.84,203.8,8.16]
[1757256695091,7.59,203.83,203.8,8.16]
[1757256696296,13.09833676,203.85,203.8,8.16]
[1757256696492,8.53906927,203.83,203.8,8.16]
[1757256697184,0.94906927,203.83,203.8,8.16]
[1757256697488,7.59,203.82,203.79,10.10094194]
[1757256697884,7.59,203.82,203.8,8.16]
[1757256700995,7.59,203.85,203.79,10.10094194]
[1757256701191,8.53906927,203.83,203.8,8.16]
[1757256702595,7.59,203.82,203.8,8.16]
[1757256710800,7.59,203.82,203.79,10.10094194]
[1757256711003,7.4492787,203.86,203.79,10.10094194]
[1757256711204,7.59,203.82,203.79,10.10094194]
[1757256711503,7.59,203.82,203.8,8.16]
[1757256715500,7.59,203.85,203.8,8.16]
[1757256715706,0.94906927,203.82,203.8,8.16]
[1757256716805,0.94906927,203.82,203.79,1.94094194]
[1757256717001,0.94906927,203.82,203.8,8.16]
[1757256717207,0.94906927,203.82,203.79,1.94094194]
[1757256717599,0.94906927,203.82,203.8,8.16]
[1757256717798,0.94906927,203.82,203.79,1.94094194]
[1757256717997,8.53906927,203.82,203.8,8.16]
[1757256723014,7.59,203.81,203.8,8.16]
[1757256723613,7.59,203.81,203.79,10.10094194]
[1757256724011,7.59,203.83,203.77,1.94094194]
[1757256724213,7.59,203.81,203.78,8.16]
[1757256724512,0.94906927,203.82,203.78,8.16]
[1757256724714,1.94094194,203.84,203.76,120.94]
[1757256724715,7.4492787,203.84,203.76,120.94]
[1757256724914,0.94906927,203.81,203.76,128.37]
[1757256725318,8.17,203.8,203.76,120.94]
[1757256725517,8.17,203.8,203.77,7.43]
[1757256725812,0.94906927,203.81,203.77,7.43]
[1757256726118,8.17,203.8,203.77,7.43]
[1757256726318,0.94906927,203.81,203.77,7.43]
[1757256726509,8.17,203.8,203.77,7.43]
[1757256726914,8.17,203.81,203.77,7.43]
[1757256727116,1.94094194,203.82,203.77,7.43]
[1757256727316,8.17,203.79,203.77,7.43]
[1757256728615,8.17,203.82,203.76,120.94]
[1757256728811,0.94906927,203.79,203.76,120.94]
[1757256729014,8.17,203.79,203.74,7.43]
[1757256729215,0.94906927,203.77,203.71,7.43]
[1757256729420,5.50833676,203.79,203.71,7.43]
[1757256729619,8.17,203.78,203.71,7.43]
[1757256729819,8.17,203.74,203.7,120.92]
[1757256730317,8.17,203.74,203.71,7.43]
[1757256730522,8.17,203.74,203.7,120.92]
[1757256730716,8.17,203.74,203.71,7.43]
[1757256732316,3.03572229,203.81,203.7,120.92]
[1757256732317,8.17,203.78,203.7,120.92]
[1757256732522,8.17,203.74,203.71,7.43]
[1757256732725,0.94906927,203.75,203.71,7.43]
[1757256733217,8.17,203.7,203.67,7.43]
[1757256733424,0.94906927,203.69,203.63,52.89]
[1757256733725,0.94906927,203.69,203.64,7.43]
[1757256734020,9.11906927,203.69,203.63,45.46]
[1757256734224,9.11906927,203.69,203.64,7.43]
[1757256734225,0.94906927,203.69,203.64,7.43]
[1757256734523,8.17,203.75,203.66,7.43]
[1757256734723,0.94906927,203.71,203.66,7.43]
[1757256737021,0.94906927,203.71,203.65,7.43]
[1757256738519,0.94906927,203.7,203.65,7.43]
[1757256739019,0.94906927,203.7,203.64,3.03572229]
[1757256739225,0.94906927,203.68,203.64,7.43]
[1757256739419,8.17,203.67,203.63,45.46]
[1757256739624,8.17,203.67,203.64,7.43]
[1757256739917,8.17,203.67,203.63,45.46]
[1757256740123,8.17,203.67,203.64,7.43]
[1757256741026,8.17,203.67,203.63,45.46]
[1757256741325,8.17,203.67,203.64,7.43]
[1757256741717,8.17,203.67,203.63,45.46]
[1757256742120,8.17,203.67,203.64,7.43]
[1757256742324,8.17,203.67,203.63,45.46]
[1757256742525,8.17,203.67,203.64,7.43]
[1757256742824,8.17,203.67,203.63,45.46]
[1757256743020,8.17,203.67,203.64,7.43]
[1757256743227,8.17,203.67,203.63,45.46]
[1757256743428,8.17,203.67,203.64,7.43]
[1757256745230,9.11906927,203.67,203.64,7.43]
[1757256745429,9.11906927,203.67,203.63,45.46]
[1757256745631,9.11906927,203.67,203.64,7.43]
[1757256745823,9.11906927,203.67,203.63,45.46]
[1757256746731,9.11906927,203.67,203.64,7.43]
[1757256747133,0.94906927,203.67,203.64,7.43]
[1757256748232,0.94906927,203.67,203.63,45.46]
[1757256748735,0.94906927,203.67,203.64,7.43]
[1757256748928,0.94906927,203.67,203.63,45.46]
[1757256749134,0.94906927,203.67,203.64,7.43]
[1757256750735,0.94906927,203.67,203.65,7.43]
[1757256751036,0.94906927,203.67,203.63,45.46]
[1757256751331,0.94906927,203.67,203.65,7.43]
[1757256751631,0.94906927,203.67,203.64,7.43]
[1757256752333,8.17,203.73,203.65,7.43]
[1757256752538,0.94906927,203.7,203.68,7.43]
[1757256752738,8.17,203.73,203.67,3.03572229]
[1757256752939,82.6620172,203.78,203.67,3.03572229]
[1757256752940,0.94906927,203.71,203.68,7.43]
[1757256753137,8.17,203.76,203.68,7.43]
[1757256753337,0.94906927,203.73,203.68,7.43]
[1757256754035,0.94906927,203.73,203.67,7.45422229]
[1757256754235,0.94906927,203.73,203.68,7.43]
[1757256755437,0.94906927,203.73,203.68,11.8483]
[1757256755634,0.94906927,203.73,203.7,3.03572229]
[1757256756033,0.94906927,203.73,203.71,7.44]
[1757256757035,0.94906927,203.73,203.7,3.03572229]
[1757256757242,0.94906927,203.73,203.71,7.44]
[1757256757439,0.94906927,203.73,203.7,3.03572229]
[1757256758038,82.6620172,203.78,203.71,7.44]
[1757256758238,0.94906927,203.74,203.71,7.44]
[1757256758738,82.6620172,203.78,203.71,7.44]
[1757256758938,8.31906927,203.75,203.7,3.03572229]
[1757256759342,7.37,203.75,203.71,7.44]
[1757256759543,7.37,203.75,203.7,3.03572229]
[1757256759734,7.37,203.75,203.71,7.44]
[1757256759936,7.37,203.75,203.7,3.03572229]
[1757256760343,7.37,203.75,203.71,7.44]
[1757256760745,7.37,203.77,203.71,7.44]
[1757256760946,0.94906927,203.74,203.7,3.03572229]
[1757256762344,0.94906927,203.74,203.71,7.44]
[1757256762545,0.94906927,203.74,203.7,3.03572229]
[1757256763044,0.94906927,203.74,203.71,7.44]
[1757256763442,0.94906927,203.74,203.7,3.03572229]
[1757256764443,0.94906927,203.74,203.71,7.44]
[1757256764643,0.94906927,203.74,203.7,3.03572229]
[1757256764839,0.94906927,203.74,203.71,7.44]
[1757256765044,0.94906927,203.74,203.7,3.03572229]
[1757256765247,0.94906927,203.74,203.71,7.44]
[1757256765743,0.94906927,203.74,203.7,3.03572229]
[1757256766337,0.94906927,203.74,203.71,7.44]
[1757256766533,0.94906927,203.74,203.7,3.03572229]
[1757256766938,0.94906927,203.74,203.71,7.44]
[1757256767537,0.94906927,203.74,203.7,3.03572229]
[1757256767840,0.94906927,203.74,203.71,7.44]
[1757256768247,0.94906927,203.74,203.7,3.03572229]
[1757256768441,0.94906927,203.74,203.71,7.44]
[1757256769240,0.94906927,203.74,203.7,3.03572229]
[1757256770445,0.94906927,203.74,203.71,7.44]
[1757256771149,0.94906927,203.74,203.7,3.03572229]
[1757256771550,0.94906927,203.74,203.71,7.44]
[1757256772153,0.94906927,203.72,203.66,3.03572229]
[1757256772449,8.31906927,203.71,203.67,7.44]
[1757256772650,7.37,203.75,203.66,10.47572229]
[1757256772849,0.94906927,203.7,203.66,3.03572229]
[1757256773347,0.94906927,203.7,203.67,7.44]
[1757256774146,0.94906927,203.7,203.66,3.03572229]
[1757256774450,0.94906927,203.7,203.67,7.44]
[1757256775141,0.94906927,203.7,203.66,3.03572229]
[1757256775340,0.94906927,203.7,203.67,7.44]
[1757256775945,0.94906927,203.7,203.66,3.03572229]
[1757256776453,0.94906927,203.7,203.67,7.44]
[1757256776653,0.94906927,203.7,203.66,3.03572229]
[1757256777052,0.94906927,203.7,203.67,7.44]
[1757256777251,7.37,203.75,203.69,3.03572229]
[1757256777451,0.94906927,203.72,203.7,7.44]
[1757256778350,0.94906927,203.72,203.69,3.03572229]
[1757256778555,0.94906927,203.72,203.7,7.44]
[1757256778755,0.94906927,203.72,203.69,3.03572229]
[1757256779552,0.94906927,203.72,203.7,7.44]
[1757256780050,0.94906927,203.72,203.69,3.03572229]
[1757256780257,0.94906927,203.72,203.7,7.44]
[1757256781753,0.94906927,203.72,203.69,3.03572229]
[1757256782658,0.94906927,203.72,203.7,7.44]
[1757256782952,0.94906927,203.72,203.69,3.03572229]
[1757256783251,7.37,203.75,203.69,3.03572229]
[1757256783553,0.94906927,203.73,203.7,7.44]